Workbook

Sheet Tabelle1
B2: Maschinenstundensatzrechnung | F2: Legende | G2: Eingabefeld | H2: berechnetes Feld | J2: Kostenträgerrechnung
B3: (eine Fertigungsmaschine)
F4: Jahreswerte | G4: Monatswerte | H4: Fixkostenanteil | J4: Fertiungsmaterial | K4: 500
D5: maschinenabhängige Kosten | F5: (alternative Eingabe) | H5: in Prozent | J5: Materialgemeinkostenzuschlagssatz in % | K5: 12
B6: Maschinenanschaffungswert (€) | C6: 640000 | D6: Engergiegrundgebühr | H6: 100 | J6: Fertigungsstunden | K6: 5
B7: Nutzungsdauer (Jahre) | C7: 12 | D7: Platzkosten je m2 | F7: 120 | H7: 100 | J7: Lohnsatz je Stunde | K7: 22.5
B8: Wiederbeschaffunswert (€) | C8: 680000 | D8: Wartungskosten | F8: 68000 | H8: 60 | J8: Verwaltungsgemeinkostenzuschlagssatz in % | K8: 10
B9: Maschinenleistung (kW) | C9: 50 | D9: Werkzeugkosten | F9: 56000 | H9: 80 | J9: Vertriebsgemeinkostenzuschlagssatz in % | K9: 12
B10: Kalkulatorischer Zinssatz (%) | C10: 4 | D10: Betriebsstoffkosten | H10: 100 | J10: Gewinnzuschlag in % | K10: 5
B11: Energiepreis (€/kW) | C11: 0.1 | D11: sonst. maschinenabhängige Kosten | H11: 100 | J11: Kundenskonto in % | K11: 3
B12: Platzbedarf (m2) | C12: 40 | J12: Kundenrabatt in % | K12: 10
B13: jährliche Laufstunden | C13: 1920 | D13: lohnabhängige Kosten
B14: (alternativ) monatliche Laufstunden | D14: Fertigungslöhne | F14: 360000 | J14: Fertigungsmaterial | K14: =$K$4 -> 500
D15: Hilfslöhne | F15: 120000 | J15: Materialgemeinkosten | K15: =$K$14*$K$5/100 -> 60
B16: Beschäftigungsrückgang in % | C16: 0 | D16: Soziale Abgaben | F16: 56000 | J16: Materialkosten | K16: =K14+K15 -> 560
B17: Verzicht auf Fixkostendeckung | C17: 0 | D17: sonstige lohnabhängige Kosten | G17: 600 | J17: Fertigungslöhne | K17: =$K$6*$K$7 -> 112.5
D18: lohnabhängige Gemeinkosten | F18: =SUM(F15:F17) -> 176000 | G18: =SUM(G15:G17) -> 600 | J18: maschinenabhängige Fertiungsgemeinkosten | K18: =K32*$K$6 -> 541.3194444
J19: Restgemeinkosten | K19: =$K$17*$C$36 -> 57.25
E20: Fixkostenanteil | G20: variabler Kostenanteil | J20: Fertigungskosten | K20: =K17+K18+K19 -> 711.0694444
B21: Maschinenabhängige Fertigungskosten | C21: Jahreswerte | D21: Monatswerte | E21: Jahreswerte | F21: Monatswerte | G21: Jahreswerte | H21: Monatswerte | J21: Herstellkosten | K21: =K16+K20 -> 1271.069444
B22: Kalkulatorische Abschreibung | C22: =C8/C7 -> 56666.66667 | D22: =C22/12 -> 4722.222222 | E22: =C22 -> 56666.66667 | F22: =D22 -> 4722.222222 | G22: =C22-E22 -> 0 | H22: =D22-F22 -> 0 | J22: Verwaltungsgemeinkosten | K22: =$K$21*$K$8/100 -> 127.1069444
B23: Kalkulatorische Zinsen | C23: =(C6*C10/100)/2 -> 12800 | D23: =C23/12 -> 1066.666667 | E23: =C23 -> 12800 | F23: =D23 -> 1066.666667 | G23: 0 | H23: 0 | J23: Vertriebsgemeinkosten | K23: =$K$21*$K$9/100 -> 152.5283333
B24: Energiekosten | C24: =IF(C13>0,C9*C13*C11,C9*C14*C11*12) -> 9600 | D24: =C24/12 -> 800 | E24: 0 | F24: 0 | G24: 9600 | H24: 800 | J24: Selbstkosten | K24: =K21+K22+K23 -> 1550.704722
B25: Grundgebühr für Energiebereitstellung | C25: =IF(F6>0,F6,G6*12) -> 0 | D25: =IF(G6>0,G6,C25/12) -> 0 | E25: =F6*H6/100 -> 0 | F25: =D25*H6/100 -> 0 | G25: 0 | H25: 0 | J25: Gewinnzuschlag | K25: =K24*K10/100 -> 77.53523611
B26: Platzkosten | C26: =IF(F7>0,F7*C12,G7*C12*12) -> 4800 | D26: =IF(G7>0,G7*C12,C26/12) -> 400 | E26: =C26*H7/100 -> 4800 | F26: 400 | G26: 0 | H26: 0 | J26: Barverkaufspreis | K26: =K24+K25 -> 1628.239958
B27: =D8 -> Wartungskosten | C27: =IF(F8>0,F8,G8*12) -> 68000 | D27: =IF(G8>0,G8,F8/12) -> 5666.666667 | E27: =C27*H8/100 -> 40800 | F27: 3400 | G27: 27200 | H27: 2266.666667 | J27: Kundenskonto | K27: =K26*K11/(100-K11) -> 50.35793686
B28: =D9 -> Werkzeugkosten | C28: =IF(F9>0,F9,G9*12) -> 56000 | D28: =IF(G9>0,G9,F9/12) -> 4666.666667 | E28: =C28*H9/100 -> 44800 | F28: 3733.333333 | G28: 11200 | H28: 933.3333333 | J28: Zielverkaufspreis | K28: =K26+K27 -> 1678.597895
B29: =D10 -> Betriebsstoffkosten | C29: =IF(F10>0,F10,G10*12) -> 0 | D29: =IF(G10>0,G10,F10/12) -> 0 | E29: =C29*H10/100 -> 0 | F29: 0 | G29: 0 | H29: 0 | J29: Kundenrabatt | K29: =K28*K12/(100-K12) -> 186.5108772
B30: =D11 -> sonst. maschinenabhängige Kosten | C30: =IF(F11>0,F11,G11*12) -> 0 | D30: =IF(G11>0,G11,F11/12) -> 0 | E30: =C30*H11/100 -> 0 | F30: 0 | G30: 0 | H30: 0 | J30: Nettoverkaufspreis | K30: =K28+K29 -> 1865.108772
B31: Gesamtkosten | C31: =SUM(C22:C30) -> 207866.6667 | D31: 17322.22222 | E31: 159866.6667 | F31: 13322.22222 | G31: 48000 | H31: 4000
J32: Maschinenstundensatz | K32: =IF(AND(C16=0,C17=0),C33,H43+H56) -> 108.2638889
B33: Maschinenstundensatz | C33: =IF($C$13>0,C31/$C$13,(D31/$C$14)) -> 108.2638889 | D33: =IF($C$14>0,D31/$C$14,(C31/$C$13)) -> 108.2638889 | E33: =IF($C$13>0,E31/$C$13,(F31/$C$14)) -> 83.26388889 | F33: =IF($C$14>0,F31/$C$14,(E31/$C$13)) -> 83.26388889 | G33: =IF($C$13>0,G31/$C$13,(H31/$C$14)) -> 25 | H33: =IF($C$14>0,H31/$C$14,(G31/$C$13)) -> 25 | J33: Verzicht auf Fixkostendeckung | K33: =C17 -> 0
B35: Restgemeinkosten | C35: =F18+(G18*12) -> 183200 | D35: =G18+(F18/12) -> 15266.66667 | F35: Maschinen- platzkosten | G35: Jahreswerte | H35: Monatswerte
B36: Restgemeinkostenzuschlagssatz (%) | C36: =C35/(F14+(G14*12)) -> 0.5088888889 | D36: =D35/(G14+(F14/12)) -> 0.5088888889 | G36: =C35+C31 -> 391066.6667 | H36: =D31+D35 -> 32588.88889
J38: Mit der Zielwertsuche von Excel kann bei einem Beschäftigungsrückgang der Maschinenstundensatz und der damit verbundene Verzicht auf Fixkostendeckung berechnet werden, wenn eine bestimmter Nettoverkaufspreis eingehalten werden soll. (Daten - Was-wäre-wenn-Analyse - Zielwertsuche) Zielzelle: K30 Zielwert: einzuhaltender Nettoverkaufspreis veränderbare Zelle: C17 Maschinenstundensatz und Verzicht auf Fixkostendeckung werden dann in Prozent ausgewiesen.
B39: Maschinenstundensatz bei Beschäftigungsrückgang | F39: =IF(C16=0,"trifft nicht zu, kein Beschäftigungsrückgang","veränderter Maschinenstundensatz wegen Beschäftigungsrückgang") -> trifft nicht zu, kein Beschäftigungsrückgang
B40: (ohne und mit Verzicht auf Deckung der Kosten des Beschäftigungsrückganges)
B42: Beschäftigungsrückgang in % | C42: =C16 -> 0 | D42: Maschinenstundensatz | F42: fix | G42: variabel | H42: insgesamt
B43: Laufzeitreduzierung | C43: =IF(C13>0,C13*(C42/100),(C14*12)*(C42/100)) -> 0 | D43: bei Beschäftigungsrückgang | F43: =IF(C16>0,IF(C13>0,E31/(C13-(C43*(100%-C45))),(F31*12)/((C14*12)-(C43*(100%-C45)))),0) -> 0 | G43: =IF(C16>0,G33,0) -> 0 | H43: =F43+G43 -> 0
B44: Maschinenlaufzeit bei Reduzierung | C44: =IF(C13>0,C13-C43,(C14*12)-C43) -> 1920 | G44: Die ersetzbaren und nicht ersetzbaren fixen Kosten werden vom Anteil des Beschäftigungsrückganges berechnet.
B45: Verzicht auf Fixkostendeckung der Laufzeitreduzierung in Prozent | C45: =C17 -> 0 | D45: Jährlich ersetzbare Fixkosten | F45: =IF(C16=0,0,IF(C13>0,((E31*C44)/C13)+(E31*(C43*(C47/100)))/C13,(((F31*12)*C44)/(C14*12))+((F31*12)*(C43*(C47/100)))/(C14*12))) -> 0
D46: Monatlich ersetzbare Fixkosten | F46: =F45/12 -> 0
B47: Fixkostendeckung der Laufzeitreduzierung in Prozent | C47: =100-C45 -> 100 | D47: Jährlich nicht ersetzbar | F47: =IF(C16=0,0,E31-F45) -> 0
D48: Monatlich nicht ersetzbar | F48: =IF(C16=0,0,F31-F46) -> 0
B52: Maschinenstundensatz mit Verzicht auf Fixkostendeckung | F52: =IF(C17=0,"trifft nicht zu, kein Verzicht auf Fixkostendeckung","veränderter Maschinenstundensatz wegen Verzicht auf Fixkostendeckung") -> trifft nicht zu, kein Verzicht auf Fixkostendeckung
B53: ohne Beschäftigungsrückgang
D55: Verzicht auf Fixkostendeckung | F55: fix | G55: variabel | H55: insgesamt
D56: ohne Beschäftigungsrückgang | F56: =IF(AND(C16=0,C17>0),E33*(C47/100),0) -> 0 | G56: =IF(C16>0,0,IF(AND(C16=0,C17>0),G33,0)) -> 0 | H56: =F56+G56 -> 0
G57: Der Anteil der ersetzbaren und nicht ersetzbaren fixen Kosten wird von den gesamten fixen Kosten berechnet.
D58: Jährlich ersetzbare Fixkosten | F58: =IF(C16=0,(E31*F56)/E33,0) -> 0
D59: Monatlich ersetzbare Fixkosten | F59: =F58/12 -> 0
D60: Jährlich nicht ersetzbar | F60: =IF(AND(C16=0,C17>0),E31-F58,0) -> 0
D61: Monatlich nicht ersetzbar | F61: =F60/12 -> 0

Sheet Tabelle2

Sheet Tabelle3
